bitfinex-derivatives/quotes_BNBF0:USTF0_20241225
["timestamp","ask_amount","ask_price","bid_price","bid_amount"]
[1735131852024,0.25981533,708.19,706.88,1.03697744]
[1735131852225,0.25981814,708.18,706.88,1.03697744]
[1735131852425,0.25981814,708.17,706.88,1.03697744]
[1735131852626,0.25981814,708.16,706.88,1.03697744]
[1735131852826,0.25981814,708.15,706.88,1.03697744]
[1735131853025,0.25981814,708.14,706.88,1.03697744]
[1735131853326,0.28240609,708.2,706.88,1.03697744]
[1735131853627,0.25981955,708.19,706.93,1.03697744]
[1735131854322,0.25981955,708.19,706.94,1.03697744]
[1735131855423,0.25981955,708.19,706.96,1.03697744]
[1735131856029,0.2598179,708.18,706.96,1.03697744]
[1735131856229,0.2598179,708.17,706.99,1.03697744]
[1735131856432,0.2598179,708.16,706.99,1.03697744]
[1735131856624,0.2598179,708.15,706.99,1.03697744]
[1735131856930,0.28240609,708.2,706.99,1.03697744]
[1735131857132,0.25981785,708.19,706.99,1.03697744]
[1735131857329,0.25981785,708.19,707.01,1.03697744]
[1735131858234,0.25981785,708.19,707.0,1.03697744]
[1735131858829,0.28240609,708.2,707.0,1.03697744]
[1735131858830,0.25981824,708.18,707.0,1.03697744]
[1735131859135,0.25981824,708.17,707.0,1.03697744]
[1735131859336,0.25981824,708.16,707.0,1.03697744]
[1735131859538,0.28240609,708.2,707.0,1.03697744]
[1735131859835,0.2598177,708.19,707.0,1.03697744]
[1735131861037,0.2598177,708.19,707.04,1.03697744]
[1735131861937,0.2598177,708.19,707.03,1.03697744]
[1735131862834,0.2598177,708.19,706.98,1.03697744]
[1735131863135,0.28240609,708.2,706.98,1.03697744]
[1735131863339,0.25986447,708.19,706.98,1.03697744]
[1735131863732,0.25986447,708.19,706.89,1.72697744]
[1735131863733,0.25986447,708.19,706.89,0.69]
[1735131864332,0.25985988,708.18,706.89,0.69]
[1735131864538,0.28240609,708.2,706.89,0.69]
[1735131864738,0.2598518,708.19,706.89,0.69]
[1735131866742,0.28241407,708.18,706.89,0.69]
[1735131867137,0.25984572,708.17,706.89,0.69]
[1735131867342,0.28242205,708.16,706.89,0.69]
[1735131867543,0.25984572,708.15,706.89,0.69]
[1735131868646,0.25984572,708.15,706.82,1.03697744]
[1735131869145,0.28243002,708.14,706.82,1.03697744]
[1735131869352,0.25984572,708.13,706.82,1.03697744]
[1735131869641,0.25984572,708.13,706.8,1.03697744]
[1735131869845,0.28243002,708.14,706.83,0.736]
[1735131870045,0.2598309,708.13,706.83,0.736]
[1735131870341,0.28243002,708.14,706.83,0.736]
[1735131870744,0.28243002,708.14,706.88,1.03697744]
[1735131872146,0.28243002,708.14,706.87,1.03697744]
[1735131873146,0.28243002,708.14,706.89,1.03697744]
[1735131874045,0.28243002,708.14,706.91,1.03697744]
[1735131875045,0.28243002,708.14,706.94,1.03697744]
[1735131876244,0.28243002,708.14,706.89,1.03697744]
[1735131877249,0.28243002,708.14,706.87,1.03697744]
[1735131877951,0.28243002,708.14,706.88,1.03697744]
[1735131878751,0.28243002,708.14,706.86,1.03697744]
[1735131879350,0.28243002,708.14,706.85,1.03697744]
[1735131881649,0.28243002,708.14,706.88,1.03697744]
[1735131883154,0.28243002,708.14,706.86,1.31991889]
[1735131885056,0.28243002,708.14,706.87,1.03697744]
[1735131886256,0.28243002,708.14,706.88,0.28293345]
[1735131895066,0.28243002,708.14,706.89,0.84]
[1735131895260,0.28243002,708.14,706.9,0.28292544]
[1735131902570,0.28243002,708.14,706.91,1.03697744]
[1735131903572,0.28243002,708.14,706.9,0.28292544]
[1735131905575,0.28243002,708.14,706.91,1.03697744]
[1735131906775,0.28243002,708.14,706.92,1.03697744]
[1735131907576,0.28243002,708.14,706.94,1.03697744]
[1735131909479,0.28243002,708.14,706.93,1.03697744]
[1735131910677,0.28243002,708.14,706.9,0.28292544]
[1735131913979,0.28243002,708.14,706.92,1.03697744]
[1735131914986,0.28243002,708.14,706.91,1.03697744]
[1735131916084,0.28243002,708.14,706.92,1.03697744]
[1735131916784,0.28243002,708.14,706.9,0.28292544]
[1735131916785,0.28243002,708.14,706.93,1.03697744]
[1735131917888,0.28243002,708.14,706.9,0.28292544]
[1735131917889,0.28243002,708.14,706.94,1.03697744]
[1735131919487,0.28243002,708.14,706.9,0.28292544]
[1735131919488,0.28243002,708.14,706.95,1.03697744]
[1735131920192,0.28243002,708.14,706.96,0.84]
[1735131920692,0.28243002,708.14,706.96,1.87697744]
[1735131920887,0.28243002,708.14,707.06,1.03697744]
[1735131921689,0.28243002,708.14,707.03,1.03697744]
[1735131922290,0.28243002,708.14,707.09,1.03697744]
[1735131923394,0.28243002,708.14,707.15,1.03697744]
[1735131924295,0.28243002,708.14,707.22,1.03697744]
[1735131925995,1.04271695,708.68,707.22,1.03697744]
[1735131926194,0.54191087,708.67,707.02,1.03697744]
[1735131926394,0.2822188,708.67,707.02,1.03697744]
[1735131927095,0.2822188,708.67,707.05,1.03697744]
[1735131928096,0.2822188,708.67,707.03,1.03697744]
[1735131928993,0.2822188,708.67,707.06,1.03697744]
[1735131931397,0.2822188,708.67,707.07,1.03697744]
[1735131932696,0.2822188,708.67,707.06,1.03697744]
[1735131933699,0.2822188,708.67,706.96,0.84]
[1735131935295,0.2822188,708.67,706.9,0.28292544]
[1735131936402,0.2822188,708.67,706.91,0.753]
[1735131936600,0.2822188,708.67,707.36,1.03697744]
[1735131937601,0.2822188,708.67,707.26,1.03697744]
[1735131938296,0.2822188,708.67,707.19,1.03697744]
[1735131939098,0.2822188,708.67,707.18,1.03697744]
[1735131940303,0.2822188,708.67,707.12,1.03697744]
[1735131940901,0.2822188,708.67,707.08,1.03697744]
[1735131941702,0.2822188,708.67,707.11,1.03697744]
[1735131943008,0.2822188,708.67,706.94,2.76465081]
[1735131943009,0.2822188,708.67,707.07,1.03697744]
[1735131944007,0.2822188,708.67,707.06,1.03697744]
[1735131944807,0.2822188,708.67,707.08,0.28285342]
[1735131945207,0.2822188,708.67,707.08,1.31983086]
[1735131946002,0.2822188,708.67,707.08,0.28285342]
[1735131946201,1.04271695,709.89,707.08,0.28285342]
[1735131946402,0.28178936,709.75,707.08,0.28285342]
[1735131946605,0.25950548,709.74,707.08,0.28285342]
[1735131946799,0.28178936,709.75,707.08,0.28285342]
[1735131946800,0.25950548,709.73,707.08,0.28285342]
[1735131947007,0.25950548,709.72,707.09,1.03697744]
[1735131947204,0.25950548,709.71,707.09,1.03697744]
[1735131947402,0.25950548,709.7,707.09,1.03697744]
[1735131947603,0.25950548,709.69,707.09,1.03697744]
[1735131947805,0.25950548,709.68,707.09,1.03697744]
[1735131948002,0.25950548,709.67,707.09,1.03697744]
[1735131948205,0.28178936,709.75,707.08,0.28285342]
[1735131948206,0.25950548,709.66,707.1,1.03697744]
[1735131948407,0.25950548,709.65,707.1,1.03697744]
[1735131948608,0.28178936,709.75,707.1,1.03697744]
[1735131948609,0.25951104,709.64,707.1,1.03697744]
[1735131948816,0.25951104,709.63,707.1,1.03697744]
[1735131949104,0.25951104,709.62,707.08,0.28285342]
[1735131949307,0.25950136,709.61,707.08,0.28285342]
[1735131949505,0.25950136,709.6,707.08,0.28285342]
[1735131949709,0.25950136,709.59,707.08,0.28285342]
[1735131949908,0.28178936,709.75,707.09,1.03697744]
[1735131949909,0.25950136,709.58,707.09,1.03697744]
[1735131950109,0.25950136,709.57,707.09,1.03697744]
[1735131950309,0.25950136,709.56,707.09,1.03697744]
[1735131950603,0.25950136,709.55,707.09,1.03697744]
[1735131950804,0.25950136,709.55,707.08,0.28285342]
[1735131950805,0.25950136,709.54,707.08,0.28285342]
[1735131951009,0.25950136,709.53,707.08,0.28285342]
[1735131951205,0.25950136,709.52,707.08,0.28285342]
[1735131951407,0.2595083,709.51,707.08,0.28285342]
[1735131951607,0.2595083,709.5,707.08,0.28285342]
[1735131951804,0.2595083,709.49,707.08,0.28285342]
[1735131952010,0.2595083,709.48,707.08,0.28285342]
[1735131952206,0.2595083,709.47,707.08,0.28285342]
[1735131952410,0.2595083,709.46,707.08,0.28285342]
[1735131952611,0.2595083,709.45,707.09,0.84]
[1735131952811,0.2595083,709.44,707.09,0.84]
[1735131953012,0.2595083,709.43,707.09,0.84]
[1735131953311,0.2595083,709.42,707.09,0.84]
[1735131953510,0.2595083,709.41,707.09,0.84]
[1735131953712,0.2595083,709.4,707.09,0.84]
[1735131953909,0.2595083,709.39,707.09,0.84]
[1735131954111,0.2595083,709.74,707.09,0.84]
[1735131954303,0.2595083,709.73,707.09,0.84]
[1735131954504,0.2595083,709.72,707.09,0.84]
[1735131954813,0.2595083,709.71,707.09,0.84]
[1735131955005,0.2595083,709.7,707.09,0.84]
[1735131955309,0.2595083,709.69,707.09,0.84]
[1735131955508,0.2595083,709.68,707.09,0.84]
[1735131955805,0.2595083,709.67,707.09,0.84]
[1735131956005,0.2595083,709.66,707.09,0.84]
[1735131956207,0.2595083,709.65,707.09,0.84]
[1735131956409,0.2595083,709.64,707.09,0.84]
[1735131956708,0.2595083,709.63,707.1,1.03697744]
[1735131956910,0.25950127,709.63,707.1,1.03697744]
[1735131957111,0.25950127,709.62,707.1,1.03697744]
[1735131957410,0.25950127,709.61,707.1,1.03697744]
[1735131957605,0.25950127,709.6,707.1,1.03697744]
[1735131957811,0.25950127,709.59,707.1,1.03697744]
[1735131958011,0.25950127,709.58,707.1,1.03697744]
[1735131958211,0.28178936,709.75,707.14,1.03697744]
[1735131958212,0.25950127,709.57,707.14,1.03697744]
[1735131958406,0.25950127,709.56,707.14,1.03697744]
[1735131958608,0.25950127,709.55,707.14,1.03697744]
[1735131958805,0.25950127,709.54,707.14,1.03697744]
[1735131959011,0.25950127,709.53,707.17,1.03697744]
[1735131959208,0.25950127,709.52,707.17,1.03697744]
[1735131959407,0.25950127,709.51,707.17,1.03697744]
[1735131959609,0.25950729,709.5,707.17,1.03697744]
[1735131959806,0.25950729,709.49,707.19,1.03697744]
[1735131960007,0.25950729,709.48,707.19,1.03697744]
[1735131960207,0.25950729,709.47,707.19,1.03697744]
[1735131960410,0.25950729,709.46,707.19,1.03697744]
[1735131960612,0.25950729,709.45,707.19,1.03697744]
[1735131960813,0.25950729,709.44,707.2,1.03697744]
[1735131961010,0.25950729,709.43,707.2,1.03697744]
[1735131961211,0.25950729,709.42,707.2,1.03697744]
[1735131961413,0.25950729,709.41,707.2,1.03697744]
[1735131961714,0.25950729,709.4,707.24,1.03697744]
[1735131961909,0.25950729,709.39,707.24,1.03697744]
[1735131962112,0.25950729,709.38,707.24,1.03697744]
[1735131962309,1.04271695,709.7,707.24,1.03697744]
[1735131962310,0.25950729,709.37,707.24,1.03697744]
[1735131962513,0.25950729,709.36,707.24,1.03697744]
[1735131962713,0.25950729,709.35,707.26,1.03697744]
[1735131963012,0.25950729,709.34,707.26,1.03697744]
[1735131963209,0.25950729,709.33,707.26,1.03697744]
[1735131963410,0.25950729,709.32,707.29,1.03697744]
[1735131963607,0.25950729,709.31,707.29,1.03697744]
[1735131963812,0.25950729,709.3,707.29,1.03697744]
[1735131964014,0.25950729,709.29,707.29,1.03697744]
[1735131964214,0.25950824,709.28,707.27,1.03697744]
[1735131964415,0.25950824,709.27,707.27,1.03697744]
[1735131964614,0.25950824,709.26,707.27,1.03697744]
[1735131964913,1.04271695,709.68,707.27,1.03697744]
[1735131964914,0.25950824,709.25,707.27,1.03697744]
[1735131965111,0.25951077,709.24,707.27,1.03697744]
[1735131965312,0.25951077,709.23,707.31,1.03697744]
[1735131965609,0.25951077,709.22,707.31,1.03697744]
[1735131965809,0.25951077,709.21,707.31,1.03697744]
[1735131966014,0.25951077,709.2,707.31,1.03697744]
[1735131966209,0.25951077,709.19,707.37,1.03697744]
[1735131966411,0.25951077,709.18,707.37,1.03697744]
[1735131966614,0.25951077,709.17,707.37,1.03697744]
[1735131966812,0.25951077,709.16,707.37,1.03697744]
[1735131967012,1.04271695,709.52,707.42,1.03697744]
[1735131967211,0.25951015,709.51,707.42,1.03697744]
[1735131967412,0.25951015,709.51,707.43,0.28271348]
[1735131967616,0.28192441,709.41,707.43,0.28271348]
[1735131967818,0.25951015,709.4,707.44,1.03697744]
[1735131968413,0.25951015,709.4,707.52,1.03697744]
[1735131969117,1.04271695,709.38,707.56,1.03697744]
[1735131969417,0.25951015,709.37,707.56,1.03697744]
[1735131969916,0.25950966,709.36,707.56,1.03697744]
[1735131970113,0.25950966,709.36,707.43,0.28271348]
[1735131970114,1.04271695,709.34,707.6,1.03697744]
[1735131970311,0.25950966,709.33,707.6,1.03697744]
[1735131970915,0.25950966,709.33,707.63,1.03697744]
[1735131971117,0.25950966,709.32,707.63,1.03697744]
[1735131971318,0.25950966,709.31,707.63,1.03697744]
[1735131971519,0.25950966,709.3,707.63,1.03697744]
[1735131971715,1.04271695,709.36,707.63,1.03697744]
[1735131971919,0.25944633,709.35,707.54,1.03697744]
[1735131972216,0.28192441,709.41,707.54,1.03697744]
[1735131972217,0.25944633,709.34,707.54,1.03697744]
[1735131972422,0.25944633,709.4,707.54,1.03697744]
[1735131972622,0.25944669,709.39,707.54,1.03697744]
[1735131972825,0.25944669,709.38,707.54,1.03697744]
[1735131973022,0.25944669,709.37,707.56,1.03697744]
[1735131973215,0.28192441,709.41,707.56,1.03697744]
[1735131973421,0.25945254,709.4,707.56,1.03697744]
[1735131973822,0.25945254,709.4,707.56,1.72797744]
[1735131974122,0.25945254,709.4,707.59,1.03697744]
[1735131976227,0.25945254,709.4,707.65,1.03697744]
[1735131977423,0.25945254,709.4,707.66,1.03697744]
[1735131978128,0.28192441,709.41,707.66,1.03697744]
[1735131978333,0.2594497,709.4,707.66,1.03697744]
[1735131978728,0.2594497,709.4,707.67,1.03697744]
[1735131980833,0.2594497,709.4,707.69,1.03697744]
[1735131981633,0.2594497,709.4,707.56,0.691]
[1735131984835,0.2594497,709.4,707.57,1.03697744]
[1735131985937,0.2594497,709.4,707.56,0.691]
[1735131986136,0.28192441,709.41,707.56,0.691]
[1735131987031,0.25946358,709.4,707.56,0.691]
[1735131988341,0.25946257,709.39,707.56,0.691]
[1735131988538,0.28192441,709.41,707.56,0.691]
[1735131988737,0.25946051,709.4,707.56,0.691]
[1735131989640,0.28192441,709.41,707.56,0.691]
[1735131989841,0.25945946,709.4,707.56,0.691]
[1735131990947,0.28192441,709.41,707.57,0.28265754]
[1735131991145,0.25945668,709.4,707.57,0.28265754]
[1735131991338,0.28192441,709.41,707.57,0.28265754]
[1735131991743,0.25945513,709.4,707.57,0.28265754]
[1735131991941,0.28193633,709.38,707.57,0.28265754]
[1735131992142,0.25945513,709.37,707.57,0.28265754]
[1735131992639,0.25945513,709.37,707.62,1.03697744]
[1735131993641,0.25945513,709.37,707.69,1.03697744]
[1735131994448,0.25945513,709.37,707.78,1.03697744]
[1735131995043,0.28193633,709.38,707.78,1.03697744]
[1735131995345,0.25946138,709.37,707.79,1.03697744]
[1735131995941,0.28193633,709.38,707.76,1.03697744]
[1735131995942,0.25945984,709.36,707.76,1.03697744]
[1735131996245,0.28195223,709.34,707.8,0.785]
[1735131996546,0.25945984,709.33,707.8,0.785]
[1735131996746,0.28196416,709.31,707.8,0.785]
[1735131996947,0.25945984,709.3,707.8,0.785]
[1735131997148,0.28197608,709.28,707.8,0.785]
[1735131997447,0.25945984,709.27,707.8,0.785]
[1735131997643,0.28198403,709.26,707.8,0.785]
[1735131997843,0.25945984,709.25,707.8,0.785]
[1735132003346,0.25953661,709.24,707.8,0.785]
[1735132003551,0.25953661,709.23,707.8,0.785]
[1735132003750,0.25953661,709.22,707.8,0.785]
[1735132003946,0.25953661,709.21,707.8,0.785]
[1735132004152,0.25954141,709.2,707.8,0.785]
[1735132004447,0.25954141,709.19,707.8,0.785]
[1735132004652,0.28198403,709.26,707.8,0.785]
[1735132004653,0.25954141,709.18,707.8,0.785]
[1735132004847,0.25954141,709.17,707.8,0.785]
[1735132005051,0.25954141,709.16,707.8,0.785]
[1735132005354,0.25954141,709.15,707.8,0.785]
[1735132005554,0.25954141,709.14,707.8,0.785]
[1735132005855,0.25954141,709.13,707.8,0.785]
[1735132006053,0.25954141,709.12,707.8,0.785]
[1735132006353,0.25954347,709.11,707.8,0.785]
[1735132006546,0.25954347,709.1,707.8,0.785]
[1735132006751,0.25954347,709.09,707.8,0.785]
[1735132006951,0.25954347,709.08,707.8,0.785]
[1735132007154,0.25954347,709.07,707.8,0.785]
[1735132007353,0.25954347,709.06,707.8,0.785]
[1735132007653,0.25954347,709.05,707.8,0.785]
[1735132007855,0.25954347,709.04,707.8,0.785]
[1735132008052,0.25954347,709.03,707.8,0.785]
[1735132008255,0.25954347,709.02,707.8,0.785]
[1735132008455,0.25954347,709.01,707.8,0.785]
[1735132008654,0.25954347,709.0,707.8,0.785]
[1735132008849,0.28198403,709.26,707.8,0.785]
[1735132009053,0.25954154,709.25,707.8,0.785]
[1735132009558,0.28199596,709.23,707.8,0.785]
[1735132009757,0.25954154,709.22,707.8,0.785]
[1735132010257,0.28200789,709.2,707.8,0.785]
[1735132010556,0.25954154,709.19,707.8,0.785]
[1735132011657,0.25952292,709.18,707.8,0.785]
[1735132011957,0.25952292,709.17,707.8,0.785]
[1735132012158,0.54154672,709.16,707.8,0.785]
[1735132012357,0.25952292,709.15,707.8,0.785]
[1735132013159,0.25952292,709.15,707.57,0.28265754]
[1735132013554,0.25952292,709.15,707.57,1.31963498]
[1735132014252,0.25952292,709.15,707.58,0.701]
[1735132014452,0.25950247,709.14,707.63,1.03697744]
[1735132014653,0.2820238,709.16,707.63,1.03697744]
[1735132014654,0.25950247,709.13,707.71,1.03697744]
[1735132014867,0.25950247,709.12,707.71,1.03697744]
[1735132015158,0.25950247,709.11,707.71,1.03697744]
[1735132015358,0.25950247,709.1,707.71,1.03697744]
[1735132015559,0.25950247,709.09,707.71,1.03697744]
[1735132015761,0.25950247,709.08,707.65,1.03697744]
[1735132015956,0.25950247,709.07,707.65,1.03697744]
[1735132016154,0.25950247,709.06,707.65,1.03697744]
[1735132016355,0.2820238,709.16,707.65,1.03697744]
[1735132016555,0.2820238,709.16,707.64,1.03697744]
[1735132017355,0.2820238,709.16,707.6,1.03697744]
[1735132018163,0.2820238,709.16,707.62,1.03697744]
[1735132020767,0.2820238,709.16,707.63,0.28263357]
[1735132021159,0.2594618,709.15,707.63,0.28263357]
[1735132021362,0.2594618,709.15,707.64,1.03697744]
[1735132021763,0.25946383,709.14,707.64,1.03697744]
[1735132021962,0.25946383,709.13,707.64,1.03697744]
[1735132022164,0.25946383,709.12,707.76,1.03697744]
[1735132022465,0.2820238,709.16,707.76,1.03697744]
[1735132022765,0.25946413,709.15,707.76,1.03697744]
[1735132023266,0.25946413,709.15,707.75,1.03697744]
[1735132024369,0.25946413,709.15,707.65,1.03697744]
[1735132024370,0.2820238,709.16,707.7,1.03697744]
[1735132024568,0.25947493,709.15,707.7,1.03697744]
[1735132025566,0.2820238,709.16,707.7,1.03697744]
[1735132025964,0.2820238,709.16,707.71,1.03697744]
[1735132026969,0.2820238,709.16,707.63,0.28263357]
[1735132029476,0.2820238,709.16,707.64,0.678]
[1735132031376,0.2820238,709.16,707.77,1.03697744]
[1735132031977,0.2820238,709.16,707.76,1.03697744]
[1735132033073,0.2820238,709.16,707.75,1.03697744]
[1735132034278,0.2820238,709.16,707.76,1.03697744]
[1735132035370,0.2820238,709.16,707.78,1.03697744]
[1735132036780,0.2820238,709.16,707.64,0.678]
[1735132038778,0.2820238,709.16,707.71,1.03697744]
[1735132039874,0.2820238,709.16,707.72,1.03697744]
[1735132040781,0.2820238,709.16,707.76,1.03697744]
[1735132041682,0.2820238,709.16,707.69,1.03697744]
[1735132042585,0.2820238,709.16,707.73,1.03697744]
[1735132044485,0.2820238,709.16,707.72,1.03697744]
[1735132045186,0.2820238,709.16,707.91,1.03697744]
[1735132045586,0.2820238,709.16,707.92,0.84]
[1735132054995,0.2820238,709.16,707.96,1.03697744]
[1735132055996,0.2820238,709.16,707.92,1.87697744]
[1735132057695,0.2820238,709.16,707.93,1.03697744]
[1735132058889,0.2820238,709.16,707.94,0.28250981]
[1735132059595,0.2820238,709.16,707.95,1.03697744]
[1735132060598,0.2820238,709.16,707.96,1.03697744]
[1735132060998,0.2820238,709.16,707.96,1.31947927]
[1735132061297,0.2820238,709.16,707.96,0.28250183]
[1735132066896,0.2820238,709.16,707.97,1.03697744]
[1735132067602,0.2820238,709.16,707.99,1.03697744]
[1735132068599,0.2820238,709.16,707.96,1.31947927]
[1735132069301,0.2820238,709.16,707.97,1.03697744]
[1735132070305,0.2820238,709.16,707.96,0.28250183]
[1735132070306,0.2820238,709.16,707.98,1.03697744]
[1735132071805,0.2820238,709.16,707.99,0.84]
[1735132072601,0.2820238,709.16,707.99,1.87697744]
[1735132073405,0.2820238,709.16,708.01,1.03697744]
[1735132075109,0.2820238,709.16,707.99,0.84]
[1735132075110,0.2820238,709.16,708.03,1.03697744]
[1735132075807,0.2820238,709.16,707.99,0.84]
[1735132075808,0.2820238,709.16,708.07,1.03697744]
[1735132076709,0.2820238,709.16,708.03,1.03697744]
[1735132077711,0.2820238,709.16,708.01,1.03697744]
[1735132078511,0.2820238,709.16,708.04,1.03697744]
[1735132079709,0.2820238,709.16,708.07,1.03697744]
[1735132080814,0.2820238,709.16,708.03,1.03697744]
[1735132082417,0.2820238,709.16,708.07,1.03697744]
[1735132083216,0.2820238,709.16,708.16,1.03697744]
[1735132084516,0.2820238,709.16,708.17,1.03697744]
[1735132085313,0.2820238,709.16,708.04,1.03697744]
[1735132086319,0.2820238,709.16,707.99,0.84]
[1735132089022,0.25951415,709.15,707.99,0.84]
[1735132089320,0.25951477,709.14,707.99,0.84]
[1735132089519,0.25951477,709.13,707.99,0.84]
[1735132089720,0.2820238,709.16,707.99,0.84]
[1735132089721,0.25951477,709.12,707.99,0.84]
[1735132089920,0.2820238,709.16,707.99,0.84]
[1735132090119,0.2595231,709.15,707.99,0.84]
[1735132091813,0.2820238,709.16,707.99,0.84]
[1735132092015,0.25951567,709.15,707.99,0.84]
[1735132092815,0.2820238,709.16,707.99,0.84]
[1735132092816,0.25951772,709.14,707.99,0.84]
[1735132093014,0.2820238,709.16,707.99,0.84]
[1735132093219,0.25950924,709.15,707.99,0.84]
[1735132094818,0.25949202,709.14,707.99,0.84]
[1735132095125,0.2820238,709.16,707.99,0.84]
[1735132095126,0.25949202,709.13,707.99,0.84]
[1735132095318,0.25949202,709.12,707.99,0.84]
[1735132095523,0.2820238,709.16,707.99,0.84]
[1735132095524,0.25949202,709.11,707.99,0.84]
[1735132095724,0.25949202,709.1,707.99,0.84]
[1735132096023,0.25949202,709.09,707.48,1.03697744]
[1735132096223,0.25949202,709.08,707.59,1.03697744]
[1735132096425,0.25949202,709.07,707.59,1.03697744]
[1735132096625,0.25949202,709.06,707.59,1.03697744]
[1735132096825,0.25949202,709.05,707.59,1.03697744]
[1735132097024,0.25949202,709.04,707.62,1.03697744]
[1735132097320,0.25949202,709.03,707.62,1.03697744]
[1735132097524,0.25948909,709.02,707.62,1.03697744]
[1735132097820,0.2820238,709.16,707.62,1.03697744]
[1735132098026,0.25949946,709.15,707.62,1.03697744]
[1735132098826,0.25949946,709.15,707.6,0.831]
[1735132099226,0.25956041,709.14,707.6,0.831]
[1735132099525,0.25956041,709.13,707.6,0.831]
[1735132099725,0.2820238,709.16,707.6,0.831]
[1735132099726,0.25956041,709.12,707.6,0.831]
[1735132099922,0.25956041,709.11,707.6,0.831]
[1735132100128,0.25956979,709.1,707.6,0.831]
[1735132100422,0.25956979,709.09,707.6,0.831]
[1735132100628,0.25956979,709.08,707.6,0.831]
[1735132100822,0.25956979,709.07,707.6,0.831]
[1735132101025,0.25958051,709.15,707.6,0.831]
[1735132101224,0.25958051,709.14,707.6,0.831]
[1735132101425,0.25957754,709.13,707.6,0.831]
[1735132101628,0.25957754,709.12,707.6,0.831]
[1735132101928,0.25957754,709.11,707.6,0.831]
[1735132102125,0.25957754,709.1,707.6,0.831]
[1735132102327,0.25957754,709.09,707.6,0.831]
[1735132102526,0.2820238,709.16,707.6,0.831]
[1735132102720,0.25956788,709.15,707.6,0.831]
[1735132102922,0.25956935,709.14,707.6,0.831]
[1735132103129,0.25956935,709.13,707.6,0.831]
[1735132103322,0.25956935,709.12,707.6,0.831]
[1735132103521,0.25956935,709.11,707.6,0.831]
[1735132103721,0.25956935,709.1,707.6,0.831]
[1735132103923,0.25956935,709.09,707.6,0.831]
[1735132104121,0.2820238,709.16,707.6,0.831]
[1735132104122,0.25956935,709.08,707.6,0.831]
[1735132104325,0.25956935,709.07,707.6,0.831]
[1735132104524,0.25956935,709.06,707.6,0.831]
[1735132104732,0.25956935,709.05,707.6,0.831]
[1735132104927,0.25956935,709.04,707.6,0.831]
[1735132105123,0.25956935,709.03,707.6,0.831]
[1735132105325,0.25957979,709.02,707.6,0.831]
[1735132105523,0.25957979,709.15,707.6,0.831]
[1735132105828,0.25957979,709.14,707.6,0.831]
[1735132106021,0.25957979,709.13,707.6,0.831]
[1735132106220,0.25957979,709.12,707.6,0.831]
[1735132106428,0.25957979,709.11,707.6,0.831]
[1735132106620,0.25957979,709.1,707.6,0.831]
[1735132106821,0.25957979,709.09,707.6,0.831]
[1735132107028,0.2820238,709.16,707.6,0.831]
[1735132107029,0.25957979,709.08,707.6,0.831]
[1735132107222,0.25957979,709.07,707.6,0.831]
[1735132107427,0.25957979,709.06,707.6,0.831]
[1735132107626,0.25957979,709.05,707.6,0.831]
[1735132107926,0.2820238,709.16,707.6,0.831]
[1735132107927,0.25957979,709.04,707.6,0.831]
[1735132108127,0.25957979,709.03,707.6,0.831]
[1735132108332,0.25957979,709.02,707.6,0.831]
[1735132108629,0.2820238,709.16,707.6,0.831]
[1735132108630,0.25957979,709.01,707.6,0.831]
[1735132108832,0.25957979,709.0,707.6,0.831]
[1735132109032,0.25958511,708.99,707.6,0.831]
[1735132109231,0.25958511,708.98,707.6,0.831]
[1735132109531,0.25958511,708.97,707.6,0.831]
[1735132109728,0.25958511,708.96,707.6,0.831]
[1735132109929,0.25958511,708.95,707.6,0.831]
[1735132110230,0.25958511,708.94,707.6,0.831]
[1735132110430,0.25958511,708.93,707.6,0.831]
[1735132110753,0.25958511,708.92,707.6,0.831]
[1735132110924,0.25958511,708.91,707.6,0.831]
[1735132111126,0.2820238,709.16,707.6,0.831]
[1735132111329,0.25959154,709.15,707.6,0.831]
[1735132111628,0.2820238,709.16,707.6,0.831]
[1735132111629,0.25959154,709.14,707.6,0.831]
[1735132111829,0.2820238,709.16,707.6,0.831]
[1735132111830,0.25959154,709.13,707.6,0.831]
[1735132112031,0.25959154,709.12,707.6,0.831]
[1735132112230,0.25959154,709.11,707.6,0.831]
[1735132112428,0.25959154,709.1,707.6,0.831]
[1735132112629,0.25959154,709.09,707.6,0.831]
[1735132112833,0.25959154,709.08,707.6,0.831]
[1735132113038,0.25959154,709.07,707.49,0.2826895]
[1735132113333,0.25959154,709.06,707.49,0.2826895]
[1735132113636,0.25959154,709.05,707.49,0.2826895]
[1735132113933,0.25964519,709.04,707.49,0.2826895]
[1735132114134,0.25964519,709.03,707.5,0.841]